fUST/lending_fUST_20240617
["ID","MTS","AMOUNT","RATE_DAILY","PERIOD"]
[329732721,1718629846025,-510.23524651,0.00016438,2]
[329732723,1718629846039,-500.0,0.00016438,2]
[329732726,1718629846056,-500.0,0.00016438,2]
[329732729,1718629846089,-500.0,0.00016438,2]
[329732731,1718629846102,-567.22813028,0.00016438,2]
[329732733,1718629846116,-500.0,0.00016438,2]
[329732735,1718629846129,-500.0,0.00016438,2]
[329732737,1718629846147,-500.0,0.00016438,2]
[329732738,1718629846162,-500.0,0.00016438,2]
[329732739,1718629846188,-500.0,0.00016438,2]
[329732740,1718629846206,-500.0,0.00016438,2]
[329732741,1718629846222,-500.0,0.00016438,2]
[329732742,1718629846234,-500.0,0.00016438,2]
[329732743,1718629846271,-500.0,0.00016438,2]
[329732744,1718629846284,-500.0,0.00016438,2]
[329732745,1718629846296,-500.0,0.00016438,2]
[329732746,1718629846308,-500.0,0.00016438,2]
[329732747,1718629846331,-500.0,0.00016438,2]
[329732748,1718629846357,-500.0,0.00016438,2]
[329732749,1718629846371,-502.44112935,0.00016438,2]
[329732750,1718629846386,-500.0,0.00016438,2]
[329732751,1718629846399,-500.0,0.00016438,2]
[329732752,1718629846424,-500.0,0.00016438,2]
[329732753,1718629846443,-500.0,0.00016438,2]
[329732754,1718629846469,-503.43438394,0.00016438,2]
[329732755,1718629846491,-502.50623745,0.00016438,2]
[329732756,1718629846504,-500.0,0.00016438,2]
[329732757,1718629846535,-500.0,0.00016438,2]
[329732758,1718629846547,-500.0,0.00016438,2]
[329732759,1718629846558,-500.0,0.00016438,2]
[329732760,1718629846572,-521.82815927,0.00016438,2]
[329732761,1718629846592,-500.0,0.00016438,2]
[329732762,1718629846624,-526.47922446,0.00016438,2]
[329732768,1718629846670,-500.0,0.00016438,2]
[329732773,1718629846694,-500.0,0.00016438,2]
[329732777,1718629846726,-596.47907796,0.00016438,2]
[329732781,1718629846754,-500.0,0.00016438,2]
[329732785,1718629846778,-500.0,0.00016438,2]
[329732789,1718629846824,-500.0,0.00016438,2]
[329732792,1718629846837,-500.0,0.00016438,2]
[329732794,1718629846860,-500.0,0.00016438,2]
[329732796,1718629846888,-500.0,0.00016438,2]
[329732798,1718629846903,-500.0,0.00016438,2]
[329732799,1718629846916,-500.0,0.00016438,2]
[329732801,1718629846928,-500.0,0.00016438,2]
[329732803,1718629846939,-500.0,0.00016438,2]
[329732805,1718629846950,-500.0,0.00016438,2]
[329732806,1718629846962,-500.0,0.00016438,2]
[329732808,1718629846974,-529.9077469,0.00016438,2]
[329732810,1718629847005,-500.0,0.00016438,2]
[329732812,1718629847033,-500.0,0.00016438,2]
[329732814,1718629847068,-500.0,0.00016438,2]
[329732816,1718629847080,-500.0,0.00016438,2]
[329732818,1718629847106,-500.0,0.00016438,2]
[329732820,1718629847132,-504.60574249,0.00016438,2]
[329732821,1718629847144,-1000.0,0.00016438,2]
[329732823,1718629847158,-1000.0,0.00016438,2]
[329732825,1718629847169,-1000.0,0.00016438,2]
[329732826,1718629847198,-1000.0,0.00016438,2]
[329732827,1718629847211,-1000.0,0.00016438,2]
[329732828,1718629847224,-1000.0,0.00016438,2]
[329732829,1718629847237,-1000.0,0.00016438,2]
[329732830,1718629847258,-1000.0,0.00016438,2]
[329732831,1718629847271,-1000.0,0.00016438,2]
[329732832,1718629847289,-1000.0,0.00016438,2]
[329732833,1718629847304,-1000.0,0.00016438,2]
[329732834,1718629847318,-510.72553234,0.00016438,2]
[329732835,1718629847344,-1000.0,0.00016438,2]
[329732836,1718629847359,-500.0,0.00016438,2]
[329732837,1718629847373,-1000.0,0.00016438,2]
[329732839,1718629847389,-1000.0,0.00016438,2]
[329732841,1718629847401,-1000.0,0.00016438,2]
[329732842,1718629847428,-500.0,0.00016438,2]
[329732845,1718629847459,-500.0,0.00016438,2]
[329732847,1718629847492,-1000.0,0.00016438,2]
[329732849,1718629847506,-1000.0,0.00016438,2]
[329732851,1718629847540,-1000.0,0.00016438,2]
[329732853,1718629847554,-1000.0,0.00016438,2]
[329732854,1718629847571,-1000.0,0.00016438,2]
[329732856,1718629847586,-500.0,0.00016438,2]
[329732858,1718629847602,-1000.0,0.00016438,2]
[329732860,1718629847614,-1000.0,0.00016438,2]
[329732862,1718629847638,-1000.0,0.00016438,2]
[329732865,1718629847664,-1000.0,0.00016438,2]
[329732867,1718629847675,-1000.0,0.00016438,2]
[329732868,1718629847690,-368.41660308,0.00016438,2]
[329732869,1718629847713,-500.0,0.00016438,2]
[329732870,1718629847724,-500.0,0.00016438,2]
[329732871,1718629847749,-500.0,0.00016438,2]
[329732872,1718629847767,-631.58,0.00016438,2]
[329732873,1718629847786,-577.73173978,0.00016438,2]
[329732874,1718629847812,-510.13152189,0.00016438,2]
[329732875,1718629847827,-500.0,0.00016438,2]
[329732876,1718629847847,-500.0,0.00016438,2]
[329732877,1718629847892,-500.0,0.00016438,2]
[329732878,1718629847918,-500.0,0.00016438,2]
[329732879,1718629847940,-500.0,0.00016438,2]
[329732880,1718629847961,-500.0,0.00016438,2]
[329732881,1718629847979,-517.16394058,0.00016438,2]
[329732882,1718629847993,-500.0,0.00016438,2]
[329732883,1718629848007,-500.0,0.00016438,2]
[329732884,1718629848024,-500.0,0.00016438,2]
[329732885,1718629848039,-500.0,0.00016438,2]
[329732886,1718629848052,-500.0,0.00016438,2]
[329732887,1718629848066,-500.0,0.00016438,2]
[329732888,1718629848081,-500.0,0.00016438,2]
[329732890,1718629848099,-500.0,0.00016438,2]
[329732892,1718629848114,-151.0,0.00016438,2]
[329732894,1718629848147,-500.0,0.00016438,2]
[329732895,1718629848169,-500.0,0.00016438,2]
[329732897,1718629848183,-500.0,0.00016438,2]
[329732899,1718629848200,-500.0,0.00016438,2]
[329732900,1718629848213,-500.0,0.00016438,2]
[329732901,1718629848230,-500.0,0.00016438,2]
[329732902,1718629848259,-509.70658527,0.00016438,2]
[329732903,1718629848276,-500.0,0.00016438,2]
[329732904,1718629848289,-500.0,0.00016438,2]
[329732905,1718629848302,-500.0,0.00016438,2]
[329732906,1718629848319,-500.0,0.00016438,2]
[329732907,1718629848333,-500.0,0.00016438,2]
[329732908,1718629848356,-500.0,0.00016438,2]
[329732909,1718629848371,-500.0,0.00016438,2]
[329732910,1718629848385,-500.0,0.00016438,2]
[329732911,1718629848400,-500.0,0.00016438,2]
[329732912,1718629848424,-500.0,0.00016438,2]
[329732913,1718629848437,-500.0,0.00016438,2]
[329732914,1718629848450,-500.0,0.00016438,2]
[329732915,1718629848471,-500.0,0.00016438,2]
[329732916,1718629848509,-500.0,0.00016438,2]
[329732917,1718629848549,-500.0,0.00016438,2]
[329732919,1718629848576,-500.0,0.00016438,2]
[329732921,1718629848596,-500.0,0.00016438,2]
[329732923,1718629848610,-513.0144921,0.00016438,2]
[329732925,1718629848623,-500.0,0.00016438,2]
[329732927,1718629848637,-500.0,0.00016438,2]
[329732930,1718629848670,-500.0,0.00016438,2]
[329732931,1718629848698,-500.0,0.00016438,2]
[329732933,1718629848722,-500.0,0.00016438,2]
[329732934,1718629848744,-501.27736077,0.00016438,2]
[329732935,1718629848756,-500.0,0.00016438,2]
[329732936,1718629848770,-500.0,0.00016438,2]
[329732937,1718629848813,-500.0,0.00016438,2]
[329732938,1718629848826,-503.93438398,0.00016438,2]
[329732939,1718629848839,-500.0,0.00016438,2]
[329732940,1718629848856,-500.6960605,0.00016438,2]
[329732941,1718629848871,-511.34339069,0.00016438,2]
[329732942,1718629848889,-500.0,0.00016438,2]
[329732943,1718629848902,-500.0,0.00016438,2]
[329732944,1718629848914,-502.98750538,0.00016438,2]
[329732945,1718629848927,-500.0,0.00016438,2]
[329732946,1718629848939,-500.0,0.00016438,2]
[329732947,1718629848950,-500.0,0.00016438,2]
[329732948,1718629848962,-500.0,0.00016438,2]
[329732949,1718629848975,-500.0,0.00016438,2]
[329732950,1718629848989,-500.0,0.00016438,2]
[329732951,1718629849022,-167.30723247,0.00016438,2]
[329732952,1718629849038,-500.0,0.00016438,2]
[329732953,1718629849053,-500.0,0.00016438,2]
[329732954,1718629849066,-500.0,0.00016438,2]
[329732955,1718629849077,-502.48563397,0.00016438,2]
[329732956,1718629849090,-540.52536574,0.00016438,2]
[329732960,1718629849102,-500.0,0.00016438,2]
[329732961,1718629849116,-500.0,0.00016438,2]
[329732964,1718629849139,-470.72916787,0.00016438,2]
[329732967,1718629849162,-493.36141768,0.00016438,2]
[329732969,1718629849184,-500.0,0.00016438,2]
[329732972,1718629849197,-522.92237026,0.00016438,2]
[329732973,1718629849210,-269.71597588,0.00016438,2]
[329732974,1718629849223,-500.0,0.00016438,2]
[329732975,1718629849236,-523.93039497,0.00016438,2]
[329732976,1718629849283,-500.0,0.00016438,2]
[329732977,1718629849301,-500.0,0.00016438,2]
[329732978,1718629849314,-500.0,0.00016438,2]
[329732979,1718629849332,-500.0,0.00016438,2]
[329732980,1718629849362,-500.0,0.00016438,2]
[329732981,1718629849375,-500.0,0.00016573,2]
[329732982,1718629849389,-379.65683132,0.00016573,2]
[329732983,1718629849422,-431.00371874,0.00016573,2]
[329732984,1718629849439,-516.76449459,0.00016573,2]
[329732985,1718629849451,-531.78,0.00016712,2]
[329732986,1718629849465,-500.0,0.00016712,2]
[329732987,1718629849477,-500.0,0.00016712,2]
[329732988,1718629849490,-155.1,0.00016712,2]
[329732989,1718629849501,-500.0,0.00016712,2]
[329732990,1718629849529,-500.0,0.00016712,2]
[329732991,1718629849556,-171.371866,0.00016712,2]
[329732992,1718629849571,-171.371866,0.00016712,2]
[329732993,1718629849582,-282.39,0.00016712,2]
[329732994,1718629849596,-500.0,0.00016712,2]
[329732995,1718629849608,-500.0,0.00016712,2]
[329732996,1718629849620,-500.0,0.00016712,2]
[329732997,1718629849632,-1571.9,0.00016793,2]
[329732998,1718629849651,-211.2,0.00016793,2]
[329732999,1718629849665,-151.0,0.00016795,2]
[329733000,1718629849679,-155.42466803,0.00016847,2]
[329733001,1718629849691,-2096.53889493,0.00016847,2]
[329733002,1718629849713,-610.05273556,0.00016986,2]
[329733003,1718629849727,-500.0,0.00016986,2]
[329733004,1718629849743,-500.0,0.00016986,2]
[329733005,1718629849764,-500.0,0.00016986,2]
[329733006,1718629849777,-500.0,0.00016986,2]
[329733007,1718629849792,-500.0,0.00016986,2]
[329733008,1718629849808,-500.0,0.00016986,2]
[329733009,1718629849821,-1571.9,0.00017065,2]
[329733010,1718629849853,-211.2,0.00017065,2]
[329733011,1718629849865,-500.0,0.0001726,2]
[329733012,1718629849882,-500.0,0.0001726,2]
[329733013,1718629849895,-500.0,0.0001726,2]
[329733014,1718629849910,-500.0,0.0001726,2]
[329733015,1718629849924,-500.0,0.0001726,2]
[329733016,1718629849948,-500.0,0.0001726,2]
[329733017,1718629849967,-1571.9,0.00017338,2]
[329733018,1718629849990,-211.2,0.00017338,2]
[329733019,1718629850050,-500.0,0.00017534,2]
[329733020,1718629850063,-500.0,0.00017534,2]
[329733021,1718629850078,-500.0,0.00017534,2]
[329733022,1718629850093,-500.0,0.00017534,2]
[329733023,1718629850109,-500.0,0.00017534,2]
[329733024,1718629850124,-500.0,0.00017534,2]
[329733025,1718629850137,-1571.9,0.0001761,2]
[329733027,1718629850152,-211.2,0.0001761,2]
[329733029,1718629850167,-7924.74626995,0.00017803,2]
[329733030,1718629850185,-159.13163847,0.00017803,2]
[329733032,1718629850201,-546.13915606,0.00017803,2]
[329733033,1718629850232,-282.68764268,0.00017803,2]
[329733034,1718629850286,-1343.77512204,0.00017804,2]
[329733035,1718629850312,-309.90857507,0.00017804,2]
[329733036,1718629850325,-500.0,0.00017808,2]
[329733037,1718629850337,-500.0,0.00017808,2]
[329733038,1718629850354,-500.0,0.00017808,2]
[329733039,1718629850367,-500.0,0.00017808,2]
[329733040,1718629850380,-500.0,0.00017808,2]
[329733041,1718629850551,-500.0,0.00017808,2]
[329733042,1718629850573,-1571.9,0.00017883,2]
[329733043,1718629850586,-211.2,0.00017883,2]
[329733044,1718629850600,-476.97437791,0.00018,2]
[329733045,1718629850618,-825.23441337,0.00018,2]
[329733046,1718629850635,-500.0,0.00018,2]
[329733047,1718629850648,-150.0,0.00018048,2]
[329733048,1718629850662,-219.55168201,0.0001808,2]
[329733049,1718629850682,-386.85928654,0.0001808,2]
[329733050,1718629850694,-155.02170304,0.0001808,2]
[329733051,1718629850712,-500.0,0.0001808,2]
[329733052,1718629850724,-500.0,0.0001808,2]
[329733053,1718629850739,-500.0,0.0001808,2]
[329733054,1718629850762,-500.0,0.0001808,2]
[329733055,1718629850787,-502.21572097,0.0001808,2]
[329733056,1718629850809,-500.0,0.0001808,2]
[329733057,1718629850832,-500.0,0.0001808,2]
[329733058,1718629850849,-500.0,0.0001808,2]
[329733059,1718629850860,-500.0,0.0001808,2]
[329733060,1718629850906,-500.0,0.0001808,2]
[329733061,1718629850942,-500.0,0.0001808,2]
[329733062,1718629850959,-500.0,0.0001808,2]
[329733063,1718629850993,-500.0,0.0001808,2]
[329733064,1718629851014,-500.0,0.0001808,2]
[329733065,1718629851034,-500.0,0.0001808,2]
[329733066,1718629851046,-500.0,0.0001808,2]
[329733067,1718629851059,-500.0,0.0001808,2]
[329733068,1718629851082,-500.0,0.0001808,2]
[329733069,1718629851149,-20000.0,0.00018081,2]
[329733070,1718629851206,-151.0,0.00018081,2]
[329733071,1718629851275,-171.371866,0.00018081,2]
[329733072,1718629851352,-171.371866,0.00018081,2]
[329733073,1718629851373,-500.0,0.00018082,2]
[329733074,1718629851385,-500.0,0.00018082,2]
[329733075,1718629851412,-186.29814899,0.00018082,2]
[329733076,1718629851425,-500.0,0.00018082,2]
[329733077,1718629851452,-500.0,0.00018082,2]
[329733078,1718629851464,-1571.9,0.00018155,2]
[329733079,1718629851498,-211.2,0.00018155,2]
[329733080,1718629851525,-200.895247,0.0001825,2]
[329733081,1718629851560,-174.651046,0.0001825,2]
[329733082,1718629851604,-500.0,0.00018356,2]
[329733083,1718629851632,-500.0,0.00018356,2]
[329733084,1718629851645,-500.0,0.00018356,2]
[329733085,1718629851674,-500.0,0.00018356,2]
[329733086,1718629851700,-1571.9,0.00018428,2]
[329733087,1718629851726,-211.2,0.00018428,2]
[329733088,1718629851760,-271.64226744,0.00018625,2]
[329733089,1718629851772,-500.0,0.0001863,2]
[329733090,1718629851785,-500.0,0.0001863,2]
[329733091,1718629851852,-500.0,0.0001863,2]
[329733092,1718629851907,-500.0,0.0001863,2]
[329733093,1718629851920,-250.0,0.0001863,2]
[329733094,1718629851931,-205.5312875,0.00018672,2]
[329733095,1718629851957,-1571.9,0.000187,2]
[329733096,1718629851988,-211.2,0.000187,2]
[329733097,1718629852003,-622.8702886,0.00018845,2]
[329733098,1718629852020,-11576.81307798,0.000189,2]
[329733099,1718629852037,-500.0,0.00018904,2]
[329733100,1718629852048,-500.0,0.00018904,2]
[329733101,1718629852070,-500.0,0.00018904,2]
[329733102,1718629852089,-500.0,0.00018904,2]
[329733103,1718629852109,-1571.9,0.00018973,2]
[329733104,1718629852126,-211.2,0.00018973,2]
[329733105,1718629852175,-261.995978,0.00018986,2]
[329733106,1718629852211,-782.92587931,0.00018995,2]
[329733107,1718629852242,-163.21623134,0.00019,2]
[329733108,1718629852255,-500.0,0.00019,2]
[329733109,1718629852276,-187.51087984,0.00019173,2]
[329733110,1718629852328,-500.0,0.00019177,2]
[329733111,1718629852345,-262.5165486,0.00019177,2]
[329733112,1718629852406,-500.0,0.00019177,2]
[329733113,1718629852456,-500.0,0.00019177,2]
[329733114,1718629852474,-500.0,0.00019178,2]
[329733115,1718629852501,-500.0,0.00019178,2]
[329733116,1718629852529,-500.0,0.00019178,2]
[329733117,1718629852542,-500.0,0.00019178,2]
[329733118,1718629852602,-500.0,0.00019178,2]
[329733119,1718629852620,-500.0,0.00019178,2]
[329733120,1718629852631,-500.0,0.00019178,2]
[329733121,1718629852652,-500.0,0.00019178,2]
[329733122,1718629852697,-500.0,0.00019178,2]
[329733123,1718629852710,-500.0,0.00019178,2]
[329733124,1718629852722,-500.0,0.00019178,2]
[329733125,1718629852751,-500.0,0.00019178,2]
[329733126,1718629852767,-500.0,0.00019178,2]
[329733127,1718629852800,-500.0,0.00019178,2]
[329733128,1718629852832,-500.0,0.00019178,2]
[329733129,1718629852864,-500.0,0.00019178,2]
[329733130,1718629852904,-500.0,0.00019178,2]
[329733131,1718629852953,-535.38202711,0.00019178,2]
[329733132,1718629852971,-42.61301501,0.00019178,2]
[329733133,1718629853117,-457.38698499,0.00019178,2]
[329733134,1718629853128,-441.4027252,0.00019178,2]
[329733135,1718629853142,-58.5972748,0.00019178,2]
[329733136,1718629853156,-500.0,0.00019178,2]
[329733137,1718629853169,-66.60508391,0.00019178,2]
[329733138,1718629853460,-232.3484057,9.999e-05,2]
[329733139,1718629853472,-500.0,0.00018082,2]
[329733140,1718629853487,-500.0,0.00018356,2]
[329733141,1718629853502,-500.0,0.0001863,2]
[329733142,1718629853520,-500.0,0.00018904,2]
[329733143,1718629853538,-433.39491609,0.00019178,2]
[329733144,1718629853567,-500.0,0.00019178,2]
[329733145,1718629853589,-500.0,0.00019178,2]
[329733146,1718629853645,-500.0,0.00019178,2]
[329733147,1718629853684,-500.0,0.00019178,2]
[329733148,1718629853701,-500.0,0.00019178,2]
[329733149,1718629853715,-500.0,0.00019178,2]
[329733150,1718629853729,-500.0,0.00019178,2]
[329733151,1718629853777,-500.0,0.00019178,2]
[329733152,1718629853792,-500.0,0.00019178,2]
[329733153,1718629853822,-193.5354754,0.00019178,2]
[329733154,1718629853877,-306.4645246,0.00019178,2]
[329733155,1718629853888,-500.0,0.00019178,2]
[329733156,1718629853905,-500.0,0.00019178,2]
[329733157,1718629853923,-500.0,0.00019178,2]
[329733158,1718629853939,-500.0,0.00019178,2]
[329733159,1718629853950,-500.0,0.00019178,2]
[329733160,1718629853962,-500.0,0.00019178,2]
[329733161,1718629853974,-500.0,0.00019178,2]
[329733162,1718629853986,-500.0,0.00019178,2]
[329733163,1718629853997,-500.0,0.00019178,2]
[329733164,1718629854026,-500.0,0.00019178,2]
[329733165,1718629854045,-500.0,0.00019178,2]
[329733166,1718629854057,-500.0,0.00019178,2]
[329733167,1718629854069,-500.0,0.00019178,2]
[329733168,1718629854087,-500.0,0.00019178,2]
[329733169,1718629854102,-500.0,0.00019178,2]
[329733170,1718629854114,-500.0,0.00019178,2]
[329733171,1718629854127,-500.0,0.00019178,2]
[329733172,1718629854143,-625.29097128,0.00019178,2]
[329733173,1718629854157,-500.0,0.00019178,2]
[329733174,1718629854169,-500.0,0.00019178,2]
[329733175,1718629854194,-500.0,0.00019178,2]
[329733176,1718629854248,-500.0,0.00019178,2]
[329733177,1718629854265,-500.0,0.00019178,2]
[329733178,1718629854288,-500.0,0.00019178,2]
[329733179,1718629854317,-500.0,0.00019178,2]
[329733180,1718629854332,-500.0,0.00019178,2]
[329733181,1718629854348,-500.0,0.00019178,2]
[329733182,1718629854363,-535.38202707,0.00019178,2]
[329733183,1718629854373,-500.0,0.00019178,2]
[329733184,1718629854385,-500.0,0.00019178,2]
[329733185,1718629854402,-500.0,0.00019178,2]
[329733186,1718629854415,-500.0,0.00019178,2]
[329733187,1718629854428,-500.0,0.00019178,2]
[329733188,1718629854446,-500.0,0.00019178,2]
[329733189,1718629854469,-500.0,0.00019178,2]
[329733190,1718629854489,-540.04222847,0.00019178,2]
[329733191,1718629854501,-500.0,0.00019178,2]
[329733192,1718629854519,-500.0,0.00019178,2]
[329733193,1718629854536,-500.0,0.00019178,2]
[329733194,1718629854549,-500.0,0.00019178,2]
[329733195,1718629854561,-500.0,0.00019178,2]
[329733196,1718629854572,-500.0,0.00019178,2]
[329733197,1718629854583,-500.0,0.00019178,2]
[329733198,1718629854597,-500.0,0.00019178,2]
[329733199,1718629854626,-500.0,0.00019178,2]
[329733200,1718629854637,-500.0,0.00019178,2]
[329733201,1718629854663,-500.0,0.00019178,2]
[329733202,1718629854675,-500.0,0.00019178,2]
[329733203,1718629854686,-500.0,0.00019178,2]
[329733204,1718629854704,-500.0,0.00019178,2]
[329733205,1718629854716,-500.0,0.00019178,2]
[329733206,1718629854731,-500.0,0.00019178,2]
[329733207,1718629854758,-500.0,0.00019178,2]
[329733208,1718629854785,-535.38202707,0.00019178,2]
[329733209,1718629854813,-500.0,0.00019178,2]
[329733210,1718629854826,-500.0,0.00019178,2]
[329733211,1718629854838,-500.0,0.00019178,2]
[329733212,1718629854856,-500.0,0.00019178,2]
[329733213,1718629854868,-500.0,0.00019178,2]
[329733214,1718629854885,-500.0,0.00019178,2]
[329733215,1718629854908,-500.0,0.00019178,2]
[329733216,1718629854940,-500.0,0.00019178,2]
[329733217,1718629854968,-500.0,0.00019178,2]
[329733218,1718629854980,-500.0,0.00019178,2]
[329733219,1718629854997,-500.0,0.00019178,2]
[329733220,1718629855020,-200.0,0.00019178,2]
[329733221,1718629855032,-500.0,0.00019178,2]
[329733222,1718629855058,-500.0,0.00019178,2]
[329733223,1718629855084,-500.0,0.00019178,2]
[329733224,1718629855104,-500.0,0.00019178,2]
[329733225,1718629855146,-500.0,0.00019178,2]
[329733226,1718629855172,-500.0,0.00019178,2]
[329733227,1718629855218,-500.0,0.00019178,2]
[329733228,1718629855265,-535.38202707,0.00019178,2]
[329733229,1718629855285,-500.0,0.00019178,2]
[329733230,1718629855301,-500.0,0.00019178,2]
[329733231,1718629855332,-500.0,0.00019178,2]
[329733232,1718629855377,-500.0,0.00019178,2]
[329733233,1718629855394,-500.0,0.00019178,2]
[329733234,1718629855429,-500.0,0.00019178,2]
[329733235,1718629855451,-500.0,0.00019178,2]
[329733236,1718629855475,-500.0,0.00019178,2]
[329733237,1718629855501,-500.0,0.00019178,2]
[329733238,1718629855541,-328.81462317,0.00019178,2]
[329733239,1718629855565,-500.0,0.00019178,2]
[329733240,1718629855594,-300.317894,0.00019178,2]
[329733241,1718629855614,-500.0,0.00019178,2]
[329733242,1718629855637,-171.371866,0.00019178,2]
[329733243,1718629855655,-171.371866,0.00019178,2]
[329733244,1718629855694,-500.0,0.00019178,2]
[329733245,1718629855719,-500.0,0.00019178,2]
[329733246,1718629855735,-222.19864026,0.00019178,2]
[329733247,1718629855753,-361.22667,0.00019178,2]
[329733248,1718629855766,-1571.9,0.00019245,2]
[329733249,1718629855781,-211.2,0.00019245,2]
[329733250,1718629855794,-171.371866,0.00019394,2]
[329733251,1718629855813,-171.371866,0.00019394,2]
[329733252,1718629855825,-500.0,0.00019452,2]
[329733253,1718629855836,-500.0,0.00019452,2]
[329733254,1718629855851,-343.97829501,0.00019452,2]
[329733255,1718629855869,-500.0,0.00019452,2]
[329733256,1718629855881,-1571.9,0.00019518,2]
[329733257,1718629855892,-211.2,0.00019518,2]
[329733258,1718629855913,-160.0,0.00019685,3]
[329733259,1718629855934,-500.0,0.00019726,2]
[329733260,1718629855959,-500.0,0.00019726,2]
[329733261,1718629855991,-593.45670335,0.00019783,2]
[329733262,1718629856008,-620.14351443,0.00019787,2]
[329733263,1718629856021,-1571.9,0.0001979,2]
[329733264,1718629856039,-211.2,0.0001979,2]
[329733265,1718629856073,-160.0,0.00019817,4]
[329733266,1718629856085,-1152.87490083,0.0001987,5]
[329733267,1718629856107,-500.0,0.00019889,2]
[329733268,1718629856118,-500.0,0.00019889,2]
[329733269,1718629856131,-160.0,0.0001995,5]
[329733270,1718629856146,-500.0,0.00019989,2]
[329733271,1718629856168,-500.0,0.00019989,2]
[329733272,1718629856182,-500.0,0.00019989,2]
[329733273,1718629856193,-500.0,0.00019989,2]
[329733274,1718629856205,-500.0,0.00019989,2]
[329733275,1718629856221,-536.15286483,0.00019989,2]
[329733276,1718629856258,-136944.80599954,0.0001999,2]
[329733277,1718629856301,-1402.45,0.0001999,2]
[329733278,1718629856329,-19849.89877815,0.0001999,2]
[329733279,1718629856593,-301.58298312,0.0001999,2]
[329733280,1718629857950,-3993.38141613,0.0001999,2]
[329733281,1718629857990,-328.065,0.0001999,2]
[329733296,1718630072619,10000.0,0.000225,30]
[329733300,1718630099489,10000.0,0.000225,30]
[329733301,1718630128642,7685.0,0.000225,30]
[329733304,1718630665220,10000.0,0.000236,120]
[329733305,1718630673648,10000.0,0.000236,120]
[329733306,1718630679400,10000.0,0.000236,120]
[329733307,1718630739020,10000.0,0.000236,120]
[329733308,1718630894627,-262.33643581,9.078e-05,2]
[329733309,1718630894726,-180.75902271,9.079e-05,2]
[329733310,1718630894851,-105.38001894,9.079e-05,2]
[329733311,1718630894916,-155.0,9.08e-05,2]
[329733312,1718630894990,-155.0,9.085e-05,2]
[329733313,1718630895043,-27.71543958,9.291e-05,2]
[329733314,1718630895102,-443.09545852,9.291e-05,2]
[329733315,1718630895172,-443.09545852,9.291e-05,2]
[329733316,1718630919572,-155.0,9.077e-05,2]
[329733317,1718630919636,-170.60999119,9.198e-05,2]
[329733318,1718630919742,-152.93310402,9.291e-05,2]
[329733319,1718630919819,-17.67688717,9.291e-05,2]
[329733320,1718630919869,-460.86620804,9.996e-05,2]
[329733376,1718631035566,-1862.11553387,9.994e-05,2]
[329733378,1718631035592,-551.50279434,9.994e-05,2]
[329733379,1718631035627,-42141.17260049,9.995e-05,2]
[329733381,1718631035641,-300.50002499,9.996e-05,2]
[329733383,1718631035653,-19324.76383612,9.996e-05,2]
[329733385,1718631035667,-256.68803649,9.997e-05,2]
[329733387,1718631035684,-691.52,0.00010959,2]